[Event "Presidents Day NY GM A 2025"]
[Site "New York"]
[Date "2025.02.16"]
[Round "5.3"]
[White "Yang, Qindong"]
[Black "Paragua, Mark"]
[Result "1/2-1/2"]
[Annotator "RC"]
[ECO "E73"]
[WhiteElo "2202"]
[BlackElo "2446"]
[PlyCount "63"]
[EventDate "2025.02.12"]
[EventType "tourn"]
[EventCountry "USA"]
[SourceTitle "playchess.com"]
[Source "ChessBase"]
[SourceQuality "1"]
[TimeControl "5400+30"]

1. d4 {[%emt 0:04:50]} Nf6 {[%emt 0:00:12]} 2. c4 {[%emt 0:00:04]} g6 {[%emt 0:00:08]} 3. Nc3 {[%emt 0:00:17]} Bg7 {[%emt 0:00:05]} 4. e4 {[%emt 0:00:26]} d6 {[%emt 0:00:20]} 5. Be2 {[%emt 0:00:52]} O-O {[%emt 0:00:08]} 6. Be3 {[%emt 0:00:09]} c5 {[%emt 0:01:29]} 7. d5 {[%emt 0:00:20]} e6 {[%emt 0:00:06]} 8. Nf3 {[%emt 0:00:28]} exd5 {[%emt 0:00:08]} 9. cxd5 {[%emt 0:00:07]} b5 {[%emt 0:00:07]} 10. e5 {[%emt 0:01:43]} dxe5 {[%emt 0:00:07]} 11. Bxc5 {[%emt 0:00:12]} Re8 {[%emt 0:00:05]} 12. Bxb5 {[%emt 0:00:28]} Nbd7 {[%emt 0:00:06]} 13. Ba3 {[%emt 0:02:06]} a6 {[%emt 0:00:11]} 14. Ba4 {[%emt 0:00:57]} e4 {[%emt 0:06:34]} 15. Nd4 {[%emt 0:00:49]} Ne5 {[%emt 0:09:30]} 16. O-O {[%emt 0:00:59]} Bd7 {[%emt 0:00:36]} 17. Nc6 {[%emt 0:00:28]} Bxc6 {[%emt 0:26:48]} 18. dxc6 {[%emt 0:09:57]} Qa5 {[%emt 0:06:07]} 19. c7 {[%emt 0:15:46]} Rec8 {[%emt 0:00:32]} 20. Bd6 {[%emt 0:01:18]} Nc4 {[%emt 0:19:35]} 21. Bc6 {[%emt 0:15:09]} Nxd6 {[%emt 0:04:28]} 22. Bxa8 {[%emt 0:03:13]} Qxc7 {[%emt 0:00:08]} 23. Nd5 {[%emt 0:07:23]} Qd8 {[%emt 0:01:24]} 24. Nxf6+ {[%emt 0:00:33]} Bxf6 {[%emt 0:00:49]} 25. Bd5 {[%emt 0:00:29]} Bxb2 {[%emt 0:00:29]} 26. Rb1 {[%emt 0:00:32]} Be5 {[%emt 0:00:09]} 27. Re1 {[%emt 0:03:32]} Nb5 {[%emt 0:08:47]} 28. Bb7 {[%emt 0:17:45]} Nc3 {[%emt 0:00:21]} 29. Qxd8+ {[%emt 0:00:52]} Rxd8 {[%emt 0:00:02]} 30. Rb3 {[%emt 0:04:59]} Rd2 {[%emt 0:00:46]} 31. Bxa6 {[%emt 0:00:52]} Bd4 {[%emt 0:02:23]} 32. Rxc3 {[%emt 0:08:55]} 1/2-1/2

[Event "Presidents Day NY GM A 2025"]
[Site "New York"]
[Date "2025.02.16"]
[Round "5.4"]
[White "Park, Evan"]
[Black "Stearman, Josiah"]
[Result "0-1"]
[Annotator "RC"]
[ECO "B31"]
[WhiteElo "2415"]
[BlackElo "2439"]
[PlyCount "68"]
[EventDate "2025.02.12"]
[EventType "tourn"]
[EventCountry "USA"]
[SourceTitle "playchess.com"]
[Source "ChessBase"]
[SourceQuality "1"]
[TimeControl "5400+30"]

1. e4 {[%emt 0:00:23]} c5 {[%emt 0:05:51]} 2. a4 {[%emt 0:00:05]} Nc6 {[%emt 0:03:22]} 3. Bb5 {[%emt 0:00:05]} e6 {[%emt 0:01:26]} 4. Bxc6 {[%emt 0:01:08]} bxc6 {[%emt 0:00:06]} 5. d3 {[%emt 0:00:08]} d5 {[%emt 0:01:06]} 6. Nd2 {[%emt 0:04:54]} Bd6 {[%emt 0:01:31]} 7. Qg4 {[%emt 0:02:24]} Nf6 {[%emt 0:04:01]} 8. Qe2 {[%emt 0:00:03]} e5 {[%emt 0:00:56]} 9. b3 {[%emt 0:03:06]} O-O {[%emt 0:00:10]} 10. Bb2 {[%emt 0:00:05]} Qa5 {[%emt 0:03:02]} 11. Ngf3 {[%emt 0:04:23]} c4 {[%emt 0:00:42]} 12. dxc4 {[%emt 0:03:08]} Nxe4 {[%emt 0:06:17]} 13. O-O {[%emt 0:00:40]} Nxd2 {[%emt 0:01:42]} 14. Nxd2 {[%emt 0:00:13]} Ba6 {[%emt 0:07:39]} 15. Rfd1 {[%emt 0:01:30]} Rad8 {[%emt 0:02:17]} 16. Qf3 {[%emt 0:03:23]} Qc7 {[%emt 0:04:19]} 17. h3 {[%emt 0:03:45]} Bb7 {[%emt 0:06:37]} 18. Qf5 {[%emt 0:17:33]} Bc8 {[%emt 0:02:49]} 19. Qh5 {[%emt 0:02:01]} f5 {[%emt 0:02:34]} 20. Qe2 {[%emt 0:05:50]} e4 {[%emt 0:01:12]} 21. cxd5 {[%emt 0:01:40]} cxd5 {[%emt 0:00:02]} 22. Nf1 {[%emt 0:01:25]} Be5 {[%emt 0:04:39]} 23. Bxe5 {[%emt 0:00:42]} Qxe5 {[%emt 0:00:03]} 24. Qe3 {[%emt 0:05:03]} d4 {[%emt 0:01:55]} 25. Qe2 {[%emt 0:00:05]} Rd6 {[%emt 0:03:52]} 26. Nd2 {[%emt 0:02:43]} Ba6 {[%emt 0:00:34]} 27. Qe1 {[%emt 0:03:15]} Qc5 {[%emt 0:01:49]} 28. Rac1 {[%emt 0:01:31]} Rg6 {[%emt 0:00:43]} 29. Nf1 {[%emt 0:00:32]} Bb7 {[%emt 0:00:34]} 30. b4 {[%emt 0:01:34]} Qe5 {[%emt 0:03:20]} 31. Qe2 {[%emt 0:03:41]} d3 {[%emt 0:01:56]} 32. Qh5 {[%emt 0:00:54]} Qf6 {[%emt 0:02:26]} 33. cxd3 {[%emt 0:00:38]} Rg5 {[%emt 0:03:23]} 34. Qe2 {[%emt 0:01:18]} Rxg2+ {[%emt 0:00:09]} 0-1

[Event "Presidents Day NY GM A 2025"]
[Site "New York"]
[Date "2025.02.16"]
[Round "5.5"]
[White "Kaliksteyn, Alexander"]
[Black "Nagy, Gabor"]
[Result "1/2-1/2"]
[Annotator "RC"]
[ECO "A38"]
[WhiteElo "2337"]
[BlackElo "2472"]
[PlyCount "30"]
[EventDate "2025.02.12"]
[EventType "tourn"]
[EventCountry "USA"]
[SourceTitle "playchess.com"]
[Source "ChessBase"]
[SourceQuality "1"]
[TimeControl "5400+30"]

1. c4 {[%emt 0:00:04]} c5 {[%emt 0:00:30]} 2. Nf3 {[%emt 0:00:35]} Nf6 {[%emt 0:00:26]} 3. Nc3 {[%emt 0:00:13]} Nc6 {[%emt 0:00:29]} 4. g3 {[%emt 0:02:48]} d6 {[%emt 0:00:30]} 5. Bg2 {[%emt 0:00:48]} g6 {[%emt 0:00:10]} 6. O-O {[%emt 0:01:38]} Bg7 {[%emt 0:00:18]} 7. d3 {[%emt 0:00:44]} Bd7 {[%emt 0:02:47]} 8. Bd2 {[%emt 0:03:00]} O-O {[%emt 0:00:29]} 9. Qc1 {[%emt 0:00:23]} Rb8 {[%emt 0:04:41]} 10. Bh6 {[%emt 0:01:45]} a6 {[%emt 0:01:37]} 11. b3 {[%emt 0:10:38]} b5 {[%emt 0:01:27]} 12. Bxg7 {[%emt 0:01:05]} Kxg7 {[%emt 0:00:09]} 13. Qb2 {[%emt 0:00:24]} Kg8 {[%emt 0:02:21]} 14. Qd2 {[%emt 0:07:00]} Qa5 {[%emt 0:02:32]} 15. Rac1 {[%emt 0:03:30]} Kg7 {[%emt 0:03:37]} 1/2-1/2

[Event "Presidents Day NY GM A 2025"]
[Site "New York"]
[Date "2025.02.16"]
[Round "6.1"]
[White "Gauri, Shankar"]
[Black "Nagy, Gabor"]
[Result "1/2-1/2"]
[Annotator "ChessBase"]
[ECO "A50"]
[WhiteElo "2360"]
[BlackElo "2472"]
[PlyCount "61"]
[EventDate "2025.02.12"]
[EventType "tourn"]
[EventCountry "USA"]
[SourceTitle "playchess.com"]
[Source "ChessBase"]
[SourceQuality "1"]
[TimeControl "5400+30"]

1. d4 {[%emt 0:03:35]} Nf6 {[%emt 0:02:02]} 2. Nf3 {[%emt 0:00:13]} b6 {[%emt 0:00:27]} 3. g3 {[%emt 0:02:45]} Bb7 {[%emt 0:00:40]} 4. Bg2 {[%emt 0:00:06]} c5 {[%emt 0:00:45]} 5. c4 {[%emt 0:01:19]} cxd4 {[%emt 0:00:12]} 6. Qxd4 {[%emt 0:00:09]} Nc6 {[%emt 0:00:14]} 7. Qd1 {[%emt 0:07:34]} Ne5 {[%emt 0:05:30]} 8. Nbd2 {[%emt 0:02:56]} g6 {[%emt 0:05:04]} 9. b3 {[%emt 0:09:12]} Bg7 {[%emt 0:01:40]} 10. Bb2 {[%emt 0:00:05]} Nxf3+ {[%emt 0:01:37]} 11. exf3 {[%emt 0:06:42]} O-O {[%emt 0:02:50]} 12. O-O {[%emt 0:00:30]} Re8 {[%emt 0:04:02]} 13. Re1 {[%emt 0:06:52]} Rc8 {[%emt 0:00:53]} 14. Qe2 {[%emt 0:06:10]} d6 {[%emt 0:00:30]} 15. Rad1 {[%emt 0:00:30]} Rc5 {[%emt 0:00:30]} 16. Bd4 {[%emt 0:00:30]} Rc7 {[%emt 0:00:30]} 17. Ne4 {[%emt 0:00:30]} Nxe4 {[%emt 0:00:30]} 18. fxe4 {[%emt 0:00:30]} Bxd4 {[%emt 0:11:03]} 19. Rxd4 {[%emt 0:10:24]} Qc8 {[%emt 0:00:17]} 20. e5 {[%emt 0:08:06]} dxe5 {[%emt 0:01:47]} 21. Bxb7 {[%emt 0:01:26]} Qxb7 {[%emt 0:01:59]} 22. Qxe5 {[%emt 0:00:03]} Rc6 {[%emt 0:01:10]} 23. Red1 {[%emt 0:03:21]} Re6 {[%emt 0:01:18]} 24. Qd5 {[%emt 0:03:33]} Qb8 {[%emt 0:00:23]} 25. Qd7 {[%emt 0:02:45]} Kg7 {[%emt 0:00:26]} 26. R4d2 {[%emt 0:04:20]} Rc8 {[%emt 0:01:24]} 27. a4 {[%emt 0:01:42]} a6 {[%emt 0:00:24]} 28. Qd4+ {[%emt 0:01:13]} Kg8 {[%emt 0:01:02]} 29. Qd8+ {[%emt 0:00:21]} Kg7 {[%emt 0:00:06]} 30. Qd4+ {[%emt 0:00:02]} Kg8 {[%emt 0:00:08]} 31. Qd8+ {[%emt 0:01:11]} 1/2-1/2

[Event "Presidents Day NY GM A 2025"]
[Site "New York"]
[Date "2025.02.16"]
[Round "6.2"]
[White "Stearman, Josiah"]
[Black "Kaliksteyn, Alexander"]
[Result "1-0"]
[Annotator "ChessBase"]
[ECO "B90"]
[WhiteElo "2439"]
[BlackElo "2337"]
[PlyCount "35"]
[EventDate "2025.02.12"]
[EventType "tourn"]
[EventCountry "USA"]
[SourceTitle "playchess.com"]
[Source "ChessBase"]
[SourceQuality "1"]
[TimeControl "5400+30"]

1. e4 {[%emt 0:01:59]} c5 {[%emt 0:00:04]} 2. Nf3 {[%emt 0:00:14]} d6 {[%emt 0:00:08]} 3. d4 {[%emt 0:00:04]} cxd4 {[%emt 0:00:04]} 4. Nxd4 {[%emt 0:00:04]} Nf6 {[%emt 0:00:06]} 5. Nc3 {[%emt 0:00:03]} a6 {[%emt 0:00:06]} 6. h3 {[%emt 0:00:08]} e5 {[%emt 0:03:19]} 7. Nf3 {[%emt 0:00:26]} Be7 {[%emt 0:07:56]} 8. g4 {[%emt 0:00:10]} h6 {[%emt 0:09:25]} 9. Rg1 {[%emt 0:00:20]} Nbd7 {[%emt 0:21:04]} 10. g5 {[%emt 0:01:27]} hxg5 {[%emt 0:01:08]} 11. Nxg5 {[%emt 0:00:02]} Nf8 {[%emt 0:03:56]} 12. Qf3 {[%emt 0:06:00]} Ne6 {[%emt 0:03:27]} 13. Nxe6 {[%emt 0:00:42]} Bxe6 {[%emt 0:00:04]} 14. Rxg7 {[%emt 0:00:25]} Rc8 {[%emt 0:23:30]} 15. Bd2 {[%emt 0:02:18]} Kf8 {[%emt 0:07:59]} 16. Rg1 {[%emt 0:01:57]} b5 {[%emt 0:00:35]} 17. a3 {[%emt 0:05:48]} d5 {[%emt 0:01:13]} 18. Qg3 {[%emt 0:02:43]} 1-0

[Event "Presidents Day NY GM A 2025"]
[Site "New York"]
[Date "2025.02.16"]
[Round "6.3"]
[White "Paragua, Mark"]
[Black "Park, Evan"]
[Result "1/2-1/2"]
[Annotator "ChessBase"]
[ECO "D24"]
[WhiteElo "2446"]
[BlackElo "2415"]
[PlyCount "64"]
[EventDate "2025.02.12"]
[EventType "tourn"]
[EventCountry "USA"]
[SourceTitle "playchess.com"]
[Source "ChessBase"]
[SourceQuality "1"]
[TimeControl "5400+30"]

1. d4 {[%emt 0:00:04]} Nf6 {[%emt 0:11:24]} 2. c4 {[%emt 0:00:20]} e6 {[%emt 0:00:03]} 3. Nf3 {[%emt 0:00:15]} d5 {[%emt 0:00:19]} 4. Nc3 {[%emt 0:00:17]} dxc4 {[%emt 0:00:10]} 5. e4 {[%emt 0:00:17]} b5 {[%emt 0:00:58]} 6. e5 {[%emt 0:00:09]} Nd5 {[%emt 0:00:05]} 7. Nxb5 {[%emt 0:00:06]} Nb6 {[%emt 0:00:15]} 8. Be2 {[%emt 0:00:25]} Bb7 {[%emt 0:01:48]} 9. O-O {[%emt 0:00:20]} Qd7 {[%emt 0:00:04]} 10. Nc3 {[%emt 0:01:02]} Nc6 {[%emt 0:00:10]} 11. Be3 {[%emt 0:11:07]} Bb4 {[%emt 0:00:56]} 12. Qc2 {[%emt 0:02:35]} Ne7 {[%emt 0:03:17]} 13. Ne4 {[%emt 0:06:34]} Nf5 {[%emt 0:03:39]} 14. Nc5 {[%emt 0:02:54]} Bxc5 {[%emt 0:03:38]} 15. dxc5 {[%emt 0:00:29]} Nxe3 {[%emt 0:07:28]} 16. fxe3 {[%emt 0:01:24]} Nd5 {[%emt 0:00:25]} 17. Qxc4 {[%emt 0:10:24]} Nxe3 {[%emt 0:03:39]} 18. c6 {[%emt 0:00:26]} Qxc6 {[%emt 0:07:10]} 19. Qxc6+ {[%emt 0:00:38]} Bxc6 {[%emt 0:00:04]} 20. Rfc1 {[%emt 0:00:04]} Bd7 {[%emt 0:02:34]} 21. Nd4 {[%emt 0:08:42]} Nd5 {[%emt 0:07:58]} 22. Bf3 {[%emt 0:00:49]} Rc8 {[%emt 0:01:28]} 23. Bxd5 {[%emt 0:01:56]} exd5 {[%emt 0:00:08]} 24. Rc5 {[%emt 0:00:10]} Ke7 {[%emt 0:02:15]} 25. Rac1 {[%emt 0:03:50]} c6 {[%emt 0:00:59]} 26. b4 {[%emt 0:00:48]} Rhe8 {[%emt 0:05:04]} 27. Ra5 {[%emt 0:13:16]} Kd8 {[%emt 0:02:21]} 28. Rf1 {[%emt 0:00:54]} Rxe5 {[%emt 0:02:34]} 29. Rxf7 {[%emt 0:00:25]} Re7 {[%emt 0:00:55]} 30. Rxe7 {[%emt 0:04:01]} Kxe7 {[%emt 0:00:12]} 31. Rxa7 {[%emt 0:00:16]} c5 {[%emt 0:01:17]} 32. bxc5 {[%emt 0:05:48]} Rxc5 {[%emt 0:00:41]} 1/2-1/2

[Event "Presidents Day NY GM A 2025"]
[Site "New York"]
[Date "2025.02.16"]
[Round "6.4"]
[White "Putnam, Liam"]
[Black "Yang, Qindong"]
[Result "1-0"]
[Annotator "ChessBase"]
[ECO "A49"]
[WhiteElo "2402"]
[BlackElo "2202"]
[PlyCount "81"]
[EventDate "2025.02.12"]
[EventType "tourn"]
[EventCountry "USA"]
[SourceTitle "playchess.com"]
[Source "ChessBase"]
[SourceQuality "1"]
[TimeControl "5400+30"]

1. Nf3 {[%emt 0:01:35]} Nf6 {[%emt 0:01:39]} 2. g3 {[%emt 0:00:31]} g6 {[%emt 0:01:04]} 3. Bg2 {[%emt 0:00:15]} Bg7 {[%emt 0:00:02]} 4. d4 {[%emt 0:01:12]} d6 {[%emt 0:00:47]} 5. b3 {[%emt 0:02:45]} O-O {[%emt 0:02:42]} 6. Bb2 {[%emt 0:00:14]} e5 {[%emt 0:01:48]} 7. dxe5 {[%emt 0:00:33]} Ng4 {[%emt 0:00:49]} 8. Qc1 {[%emt 0:05:02]} Nxe5 {[%emt 0:01:11]} 9. Nxe5 {[%emt 0:00:16]} Bxe5 {[%emt 0:10:59]} 10. Bxe5 {[%emt 0:00:42]} dxe5 {[%emt 0:01:13]} 11. O-O {[%emt 0:00:37]} c6 {[%emt 0:04:38]} 12. Nd2 {[%emt 0:03:22]} Qe7 {[%emt 0:05:44]} 13. Nc4 {[%emt 0:03:42]} f6 {[%emt 0:03:01]} 14. Rd1 {[%emt 0:11:13]} Be6 {[%emt 0:03:25]} 15. Nd6 {[%emt 0:00:25]} Rd8 {[%emt 0:21:02]} 16. Qa3 {[%emt 0:00:08]} a5 {[%emt 0:05:21]} 17. Rd2 {[%emt 0:04:33]} Na6 {[%emt 0:33:35]} 18. Rad1 {[%emt 0:00:46]} Nb4 {[%emt 0:00:00]} 19. c4 {[%emt 0:11:39]} b6 {[%emt 0:00:00]} 20. Qb2 {[%emt 0:01:15]} Rd7 {[%emt 0:00:00]} 21. a3 {[%emt 0:02:36]} Rad8 {[%emt 0:00:00]} 22. axb4 {[%emt 0:00:06]} Rxd6 {[%emt 0:00:00]} 23. bxa5 {[%emt 0:00:05]} bxa5 {[%emt 0:00:00]} 24. Bxc6 {[%emt 0:00:06]} Rxd2 {[%emt 0:00:00]} 25. Rxd2 {[%emt 0:00:05]} Rb8 {[%emt 0:00:00]} 26. Bb5 {[%emt 0:05:01]} Qb4 {[%emt 0:00:00]} 27. Qc2 {[%emt 0:00:08]} Bf5 {[%emt 0:00:00]} 28. Qd1 {[%emt 0:01:27]} Kg7 {[%emt 0:00:00]} 29. Kg2 {[%emt 0:01:09]} Qc3 {[%emt 0:00:00]} 30. Rd6 {[%emt 0:01:16]} Qc2 {[%emt 0:01:17]} 31. Qe1 {[%emt 0:01:56]} Qe4+ {[%emt 0:01:00]} 32. f3 {[%emt 0:01:55]} Qe3 {[%emt 0:00:28]} 33. Qd2 {[%emt 0:00:36]} Qxb3 {[%emt 0:00:53]} 34. g4 {[%emt 0:00:22]} Bc8 {[%emt 0:00:52]} 35. Qxa5 {[%emt 0:00:49]} Qe3 {[%emt 0:00:39]} 36. Kf1 {[%emt 0:02:27]} e4 {[%emt 0:00:49]} 37. Qd8 {[%emt 0:15:46]} Ra8 {[%emt 0:03:18]} 38. Qxf6+ {[%emt 0:00:51]} Kh6 {[%emt 0:00:01]} 39. Qf8+ {[%emt 0:00:08]} Kg5 {[%emt 0:00:11]} 40. Rd5+ {[%emt 0:00:21]} Kh4 {[%emt 0:00:46]} 41. Qe7+ {[%emt 0:23:05]} 1-0

[Event "Presidents Day NY GM A 2025"]
[Site "New York"]
[Date "2025.02.16"]
[Round "6.5"]
[White "Jacobson, Aaron"]
[Black "Lenderman, Aleksandr"]
[Result "1-0"]
[Annotator "ChessBase"]
[ECO "C11"]
[WhiteElo "2343"]
[BlackElo "2480"]
[PlyCount "89"]
[EventDate "2025.02.12"]
[EventType "tourn"]
[EventCountry "USA"]
[SourceTitle "playchess.com"]
[Source "ChessBase"]
[SourceQuality "1"]
[TimeControl "5400+30"]

1. e4 {[%emt 0:01:38]} e6 {[%emt 0:00:08]} 2. d4 {[%emt 0:00:12]} d5 {[%emt 0:00:05]} 3. Nc3 {[%emt 0:00:03]} Nf6 {[%emt 0:00:06]} 4. e5 {[%emt 0:00:05]} Nfd7 {[%emt 0:00:04]} 5. Nce2 {[%emt 0:00:13]} c5 {[%emt 0:00:05]} 6. c3 {[%emt 0:00:03]} Nc6 {[%emt 0:00:10]} 7. a3 {[%emt 0:00:31]} a5 {[%emt 0:00:34]} 8. Nf3 {[%emt 0:01:20]} a4 {[%emt 0:02:50]} 9. h4 {[%emt 0:02:23]} Qb6 {[%emt 0:03:35]} 10. Nf4 {[%emt 0:04:00]} Qb3 {[%emt 0:03:34]} 11. Qe2 {[%emt 0:06:31]} cxd4 {[%emt 0:01:47]} 12. cxd4 {[%emt 0:00:04]} b6 {[%emt 0:07:22]} 13. Rh3 {[%emt 0:06:24]} Ba6 {[%emt 0:04:02]} 14. Qxa6 {[%emt 0:14:31]} Rxa6 {[%emt 0:00:17]} 15. Bxa6 {[%emt 0:00:04]} Bb4+ {[%emt 0:05:24]} 16. axb4 {[%emt 0:06:58]} Qxb4+ {[%emt 0:00:45]} 17. Bd2 {[%emt 0:13:10]} Qxb2 {[%emt 0:00:33]} 18. Rc1 {[%emt 0:00:11]} Nb4 {[%emt 0:10:36]} 19. Nd3 {[%emt 0:03:01]} Nxd3+ {[%emt 0:00:39]} 20. Bxd3 {[%emt 0:00:02]} O-O {[%emt 0:00:55]} 21. Rb1 {[%emt 0:01:44]} Qa2 {[%emt 0:00:19]} 22. Ke2 {[%emt 0:02:32]} f6 {[%emt 0:07:20]} 23. Rhh1 {[%emt 0:03:36]} Qa3 {[%emt 0:00:17]} 24. Bb4 {[%emt 0:02:39]} Qa2+ {[%emt 0:00:07]} 25. Bd2 {[%emt 0:00:03]} Qa3 {[%emt 0:00:09]} 26. Rhd1 {[%emt 0:03:53]} Qe7 {[%emt 0:02:19]} 27. Bb4 {[%emt 0:00:06]} Qd8 {[%emt 0:01:40]} 28. Bxf8 {[%emt 0:00:07]} Nxf8 {[%emt 0:00:05]} 29. Rb4 {[%emt 0:01:51]} fxe5 {[%emt 0:00:48]} 30. dxe5 {[%emt 0:00:18]} Nd7 {[%emt 0:00:59]} 31. Rxa4 {[%emt 0:01:10]} Nc5 {[%emt 0:00:14]} 32. Ra7 {[%emt 0:00:31]} b5 {[%emt 0:00:47]} 33. Rda1 {[%emt 0:04:14]} Na4 {[%emt 0:00:33]} 34. Bxb5 {[%emt 0:01:01]} Qb8 {[%emt 0:00:11]} 35. Ra5 {[%emt 0:00:47]} Nb6 {[%emt 0:00:37]} 36. Kf1 {[%emt 0:03:27]} Qc7 {[%emt 0:02:02]} 37. h5 {[%emt 0:00:49]} h6 {[%emt 0:00:20]} 38. Bd3 {[%emt 0:01:04]} Qc3 {[%emt 0:00:11]} 39. Bg6 {[%emt 0:00:24]} Nd7 {[%emt 0:00:05]} 40. Ra8+ {[%emt 0:00:29]} Nf8 {[%emt 0:00:03]} 41. Rb1 {[%emt 0:00:31]} d4 {[%emt 0:00:42]} 42. Rbb8 {[%emt 0:00:36]} Qc4+ {[%emt 0:00:05]} 43. Kg1 {[%emt 0:00:07]} Qc1+ {[%emt 0:00:03]} 44. Kh2 {[%emt 0:00:03]} Qf4+ {[%emt 0:00:04]} 45. Kh3 {[%emt 0:00:03]} 1-0

[Event "Presidents Day NY GM A 2025"]
[Site "New York"]
[Date "2025.02.17"]
[Round "7.1"]
[White "Lenderman, Aleksandr"]
[Black "Gauri, Shankar"]
[Result "1/2-1/2"]
[Annotator "RC"]
[ECO "E14"]
[WhiteElo "2480"]
[BlackElo "2360"]
[PlyCount "30"]
[EventDate "2025.02.12"]
[EventType "tourn"]
[EventCountry "USA"]
[SourceTitle "playchess.com"]
[Source "ChessBase"]
[SourceQuality "1"]
[TimeControl "5400+30"]

1. d4 {[%emt 0:00:05]} Nf6 {[%emt 0:05:21]} 2. c4 {[%emt 0:00:13]} e6 {[%emt 0:00:22]} 3. Nf3 {[%emt 0:00:06]} b6 {[%emt 0:00:03]} 4. e3 {[%emt 0:00:05]} Bb7 {[%emt 0:03:57]} 5. Bd3 {[%emt 0:00:07]} d5 {[%emt 0:00:30]} 6. O-O {[%emt 0:00:07]} Bd6 {[%emt 0:08:15]} 7. b3 {[%emt 0:00:37]} Nbd7 {[%emt 0:01:15]} 8. cxd5 {[%emt 0:01:59]} exd5 {[%emt 0:02:14]} 9. Ba3 {[%emt 0:00:07]} c5 {[%emt 0:02:48]} 10. Nc3 {[%emt 0:00:23]} O-O {[%emt 0:01:37]} 11. Nb5 {[%emt 0:00:27]} Be7 {[%emt 0:01:57]} 12. Rc1 {[%emt 0:02:09]} Re8 {[%emt 0:06:01]} 13. Bb2 {[%emt 0:00:58]} a6 {[%emt 0:12:15]} 14. Nc3 {[%emt 0:00:06]} Bd6 {[%emt 0:00:40]} 15. Qe2 {[%emt 0:01:03]} Ne4 {[%emt 0:04:13]} 1/2-1/2

[Event "Presidents Day NY GM A 2025"]
[Site "New York"]
[Date "2025.02.17"]
[Round "7.2"]
[White "Yang, Qindong"]
[Black "Jacobson, Aaron"]
[Result "1/2-1/2"]
[Annotator "RC"]
[ECO "E11"]
[WhiteElo "2202"]
[BlackElo "2343"]
[PlyCount "112"]
[EventDate "2025.02.12"]
[EventType "tourn"]
[EventCountry "USA"]
[SourceTitle "playchess.com"]
[Source "ChessBase"]
[SourceQuality "1"]
[TimeControl "5400+30"]

1. d4 {[%emt 0:05:13]} Nf6 {[%emt 0:00:10]} 2. c4 {[%emt 0:00:20]} e6 {[%emt 0:00:06]} 3. Nf3 {[%emt 0:00:13]} d5 {[%emt 0:00:09]} 4. g3 {[%emt 0:00:21]} Bb4+ {[%emt 0:00:17]} 5. Bd2 {[%emt 0:01:24]} a5 {[%emt 0:00:07]} 6. Bg2 {[%emt 0:01:40]} O-O {[%emt 0:00:10]} 7. Qc2 {[%emt 0:00:36]} Be7 {[%emt 0:00:07]} 8. O-O {[%emt 0:00:34]} c6 {[%emt 0:00:07]} 9. Rc1 {[%emt 0:03:29]} Nbd7 {[%emt 0:03:30]} 10. a4 {[%emt 0:00:32]} h6 {[%emt 0:18:49]} 11. h4 {[%emt 0:05:50]} Ne4 {[%emt 0:01:22]} 12. Be1 {[%emt 0:00:12]} f5 {[%emt 0:03:15]} 13. e3 {[%emt 0:02:16]} Bf6 {[%emt 0:10:23]} 14. Nc3 {[%emt 0:06:26]} g5 {[%emt 0:00:16]} 15. hxg5 {[%emt 0:00:38]} hxg5 {[%emt 0:00:07]} 16. Ne2 {[%emt 0:11:42]} Rf7 {[%emt 0:01:48]} 17. Nd2 {[%emt 0:09:57]} Qf8 {[%emt 0:04:48]} 18. f3 {[%emt 0:02:46]} Nxd2 {[%emt 0:19:44]} 19. Qxd2 {[%emt 0:05:54]} dxc4 {[%emt 0:03:11]} 20. Rxc4 {[%emt 0:13:47]} e5 {[%emt 0:00:28]} 21. f4 {[%emt 0:07:57]} gxf4 {[%emt 0:04:31]} 22. gxf4 {[%emt 0:00:27]} e4 {[%emt 0:00:18]} 23. Ng3 {[%emt 0:02:19]} Be7 {[%emt 0:02:30]} 24. Rc2 {[%emt 0:04:33]} Nb6 {[%emt 0:01:56]} 25. Bf1 {[%emt 0:01:05]} Be6 {[%emt 0:01:36]} 26. Qc1 {[%emt 0:00:58]} Rh7 {[%emt 0:00:41]} 27. Rg2 {[%emt 0:00:38]} Kh8 {[%emt 0:00:20]} 28. Bc3 {[%emt 0:06:04]} Nd5 {[%emt 0:00:58]} 29. Qd2 {[%emt 0:00:12]} Qf7 {[%emt 0:01:47]} 30. Re1 {[%emt 0:02:50]} Rg8 {[%emt 0:07:43]} 31. Ree2 {[%emt 0:00:32]} Nxc3 {[%emt 0:06:31]} 32. Qxc3 {[%emt 0:00:18]} Bb4 {[%emt 0:00:04]} 33. Qc1 {[%emt 0:00:25]} Bb3 {[%emt 0:00:43]} 34. Nh1 {[%emt 0:01:12]} Rhg7 {[%emt 0:02:39]} 35. Rxg7 {[%emt 0:01:11]} Rxg7+ {[%emt 0:00:02]} 36. Rg2 {[%emt 0:00:16]} Rxg2+ {[%emt 0:00:30]} 37. Bxg2 {[%emt 0:00:20]} Bxa4 {[%emt 0:00:36]} 38. Ng3 {[%emt 0:01:05]} Bb3 {[%emt 0:00:21]} 39. Kf2 {[%emt 0:00:58]} Qh7 {[%emt 0:01:31]} 40. Bf1 {[%emt 0:00:45]} Qh2+ {[%emt 0:01:22]} 41. Bg2 {[%emt 0:00:01]} Be6 {[%emt 0:01:28]} 42. d5 {[%emt 0:01:50]} Bxd5 {[%emt 0:02:46]} 43. Nxf5 {[%emt 0:00:13]} Kh7 {[%emt 0:00:55]} 44. Qd1 {[%emt 0:00:19]} Be6 {[%emt 0:01:07]} 45. Qg4 {[%emt 0:00:36]} Bf8 {[%emt 0:00:21]} 46. Qg5 {[%emt 0:00:20]} Bf7 {[%emt 0:00:36]} 47. Nh4 {[%emt 0:01:03]} a4 {[%emt 0:01:14]} 48. Kf1 {[%emt 0:00:36]} Bc4+ {[%emt 0:00:00]} 49. Kf2 {[%emt 0:00:06]} Bf7 {[%emt 0:00:00]} 50. Kf1 {[%emt 0:01:42]} Bc4+ {[%emt 0:00:14]} 51. Kf2 {[%emt 0:00:28]} b5 {[%emt 0:00:48]} 52. Qg6+ {[%emt 0:00:28]} Kh8 {[%emt 0:00:02]} 53. Qh5+ {[%emt 0:00:22]} Kg8 {[%emt 0:00:05]} 54. Qg6+ {[%emt 0:00:09]} Kh8 {[%emt 0:00:37]} 55. Qh5+ {[%emt 0:00:46]} Kg8 {[%emt 0:00:04]} 56. Qg6+ {[%emt 0:00:45]} Kh8 {[%emt 0:00:15]} 1/2-1/2

[Event "Presidents Day NY GM A 2025"]
[Site "New York"]
[Date "2025.02.17"]
[Round "7.3"]
[White "Park, Evan"]
[Black "Putnam, Liam"]
[Result "1/2-1/2"]
[Annotator "RC"]
[ECO "C47"]
[WhiteElo "2415"]
[BlackElo "2402"]
[PlyCount "36"]
[EventDate "2025.02.12"]
[EventType "tourn"]
[EventCountry "USA"]
[SourceTitle "playchess.com"]
[Source "ChessBase"]
[SourceQuality "1"]
[TimeControl "5400+30"]

1. e4 {[%emt 0:00:01]} e5 {[%emt 0:04:44]} 2. Nf3 {[%emt 0:00:09]} Nf6 {[%emt 0:00:08]} 3. Nc3 {[%emt 0:02:16]} Nc6 {[%emt 0:00:19]} 4. d4 {[%emt 0:01:28]} exd4 {[%emt 0:00:35]} 5. Nxd4 {[%emt 0:00:12]} Bb4 {[%emt 0:00:51]} 6. Nxc6 {[%emt 0:00:10]} bxc6 {[%emt 0:00:03]} 7. Bd3 {[%emt 0:00:06]} O-O {[%emt 0:00:18]} 8. O-O {[%emt 0:00:16]} d5 {[%emt 0:01:02]} 9. Bd2 {[%emt 0:01:27]} Re8 {[%emt 0:11:24]} 10. Nxd5 {[%emt 0:11:09]} Nxd5 {[%emt 0:00:17]} 11. exd5 {[%emt 0:00:05]} Bxd2 {[%emt 0:00:03]} 12. Qxd2 {[%emt 0:00:13]} cxd5 {[%emt 0:00:03]} 13. Rfe1 {[%emt 0:03:26]} Be6 {[%emt 0:04:04]} 14. Bb5 {[%emt 0:12:28]} Rf8 {[%emt 0:00:15]} 15. Bc6 {[%emt 0:05:25]} Rb8 {[%emt 0:00:11]} 16. b4 {[%emt 0:00:44]} Qh4 {[%emt 0:10:44]} 17. b5 {[%emt 0:02:03]} Qa4 {[%emt 0:04:14]} 18. Bxd5 {[%emt 0:02:13]} Bxd5 {[%emt 0:01:15]} 1/2-1/2